fUST/lending_fUST_20250605
["ID","MTS","AMOUNT","RATE_DAILY","PERIOD"]
[364453571,1749106235375,-151.0,0.00020158,2]
[364453572,1749106235384,-151.0,0.00020158,2]
[364453573,1749106235396,-151.0,0.00020158,2]
[364453574,1749106235406,-151.0,0.00020158,2]
[364453575,1749106235415,-151.0,0.00020158,2]
[364453576,1749106235425,-151.0,0.00020158,2]
[364453577,1749106235434,-151.0,0.00020158,2]
[364453578,1749106235442,-440.0,0.00020158,2]
[364453579,1749106235451,-159.91096927,0.00020164,2]
[364453580,1749106235461,-315.227936,0.00020187,2]
[364453581,1749106235470,-215.0738,0.00020208,2]
[364453582,1749106235479,-761.62,0.00020227,2]
[364453583,1749106235489,-811.47,0.00020227,2]
[364453584,1749106235499,-440.0,0.00020227,2]
[364453585,1749106235508,-440.0,0.00020227,2]
[364453586,1749106235517,-440.0,0.00020227,2]
[364453587,1749106235527,-440.0,0.00020227,2]
[364453588,1749106235536,-157.242893,0.00020245,2]
[364453589,1749106235545,-157.242893,0.00020245,2]
[364453590,1749106235554,-151.0,0.00020245,2]
[364453591,1749106235564,-151.0,0.00020245,2]
[364453592,1749106235573,-924.95492985,0.00020331,2]
[364453593,1749106235582,-500.0,0.00020416,2]
[364453594,1749106235592,-440.0,0.00020431,2]
[364453595,1749106235601,-440.0,0.00020431,2]
[364453596,1749106235610,-440.0,0.00020431,2]
[364453597,1749106235621,-440.0,0.00020431,2]
[364453598,1749106235631,-440.0,0.00020431,2]
[364453599,1749106235640,-1216.69,0.00020431,2]
[364453600,1749106235650,-440.0,0.00020431,2]
[364453601,1749106235660,-440.0,0.00020431,2]
[364453602,1749106235670,-939.73,0.00020431,2]
[364453603,1749106235680,-151.0,0.00020431,2]
[364453604,1749106235690,-164.0,0.00020432,2]
[364453605,1749106235699,-261.090643,0.00020432,2]
[364453606,1749106235708,-261.090643,0.00020432,2]
[364453607,1749106235718,-151.0,0.00020432,2]
[364453608,1749106235728,-440.0,0.00020432,2]
[364453609,1749106235737,-151.0,0.00020432,2]
[364453610,1749106235747,-151.0,0.00020432,2]
[364453611,1749106235757,-417.0898,0.00020432,2]
[364453612,1749106235766,-417.0898,0.00020432,2]
[364453613,1749106235776,-151.0,0.00020432,2]
[364453614,1749106235785,-151.0,0.00020449,2]
[364453615,1749106235794,-151.0,0.00020462,2]
[364453616,1749106235804,-151.0,0.00020462,2]
[364453617,1749106235813,-761.62,0.00020501,2]
[364453618,1749106235823,-811.47,0.00020501,2]
[364453619,1749106235832,-151.0,0.00020501,2]
[364453620,1749106235841,-344.80024977,0.00020501,2]
[364453673,1749106240026,-440.0,0.00019061,2]
[364453674,1749106240036,-151.0,0.00019883,2]
[364453675,1749106240047,-151.0,0.00019883,2]
[364453676,1749106240057,-1113.80008462,0.000199,2]
[364453677,1749106240067,-1113.80008442,0.00020072,2]
[364453678,1749106240076,-1113.80008442,0.00020245,2]
[364453679,1749106240086,-1113.80008442,0.00020417,3]
[364453680,1749106240096,-151.0,0.00020431,2]
[364453681,1749106240105,-95.19975023,0.00020501,2]
[364453682,1749106240115,-440.0,0.00020501,2]
[364453683,1749106240127,-440.0,0.00020501,2]
[364453685,1749106240137,-440.0,0.00020501,2]
[364453686,1749106240147,-385.26,0.00020547,2]
[364453687,1749106240157,-152.814219,0.00020548,2]
[364453688,1749106240167,-1113.80008442,0.0002059,3]
[364453689,1749106240176,-151.0,0.0002065,3]
[364453690,1749106240185,-500.0,0.0002065,3]
[364453691,1749106240195,-543.731424,0.0002065,3]
[364453692,1749106240204,-198.29791451,0.00020677,3]
[364453693,1749106240213,-500.0,0.00020677,3]
[364453694,1749106240222,-500.0,0.00020699,2]
[364453695,1749106240232,-281.0750944,0.00020705,3]
[364453696,1749106240242,-151.0,0.00020705,2]
[364453697,1749106240252,-151.0,0.00020705,2]
[364453698,1749106240262,-151.0,0.00020705,2]
[364453699,1749106240272,-151.0,0.00020705,2]
[364453700,1749106240281,-151.0,0.00020705,2]
[364453701,1749106240291,-151.0,0.00020705,2]
[364453702,1749106240301,-151.0,0.00020705,2]
[364453705,1749106240313,-151.0,0.00020705,2]
[364453707,1749106240323,-156.673496,0.00020705,2]
[364453709,1749106240332,-151.0,0.00020705,2]
[364453711,1749106240341,-151.0,0.00020705,2]
[364453714,1749106240351,-151.0,0.00020705,2]
[364453717,1749106240360,-151.0,0.00020705,2]
[364453719,1749106240369,-179.848569,0.00020705,2]
[364453720,1749106240380,-440.0,0.00020705,2]
[364453723,1749106240391,-440.0,0.00020705,2]
[364453725,1749106240402,-440.0,0.00020705,2]
[364453727,1749106240411,-440.0,0.00020705,2]
[364453729,1749106240421,-157.242893,0.00020705,2]
[364453733,1749106240431,-157.242893,0.00020705,2]
[364453736,1749106240442,-1216.69,0.00020705,2]
[364453738,1749106240451,-440.0,0.00020705,2]
[364453741,1749106240461,-440.0,0.00020705,2]
[364453743,1749106240471,-151.0,0.00020705,2]
[364453745,1749106240480,-151.0,0.00020705,2]
[364453747,1749106240490,-939.73,0.00020705,2]
[364453749,1749106240500,-295.61300003,0.00020706,2]
[364453751,1749106240510,-151.0,0.00020723,2]
[364453753,1749106240520,-151.0,0.00020723,2]
[364453755,1749106240530,-151.0,0.00020723,2]
[364453757,1749106240539,-924.95492983,0.00020723,2]
[364453759,1749106240548,-455.38,0.00020761,2]
[364453761,1749106240558,-1113.80008442,0.00020762,3]
[364453763,1749106240568,-811.47,0.00020775,2]
[364453765,1749106240577,-440.0,0.00020775,2]
[364453767,1749106240587,-389.76387923,0.00020775,2]
[364453789,1749106240788,-50.23612077,0.00020775,2]
[364453791,1749106240798,-234.472926,0.00020775,2]
[364453793,1749106240808,-440.0,0.00020775,2]
[364453795,1749106240817,-440.0,0.00020775,2]
[364453798,1749106240827,-151.0,0.00020775,2]
[364453800,1749106240836,-800.0,0.0002085,2]
[364453803,1749106240845,-151.0,0.00020852,2]
[364453806,1749106240854,-261.090643,0.00020868,2]
[364453809,1749106240863,-261.090643,0.00020868,2]
[364453812,1749106240873,-151.0,0.00020868,2]
[364453815,1749106240882,-800.0,0.00020868,2]
[364453818,1749106240891,-321.94390946,0.00020918,2]
[364453820,1749106240900,-800.0,0.0002092,2]
[364453822,1749106240910,-1113.80008442,0.00020934,4]
[364453824,1749106240919,-440.0,0.00020979,2]
[364453826,1749106240928,-440.0,0.00020979,2]
[364453828,1749106240937,-151.0,0.00020979,2]
[364453830,1749106240946,-440.0,0.00020979,2]
[364453832,1749106240955,-1216.69,0.00020979,2]
[364453834,1749106240965,-151.0,0.00020979,2]
[364453836,1749106240974,-440.0,0.00020979,2]
[364453838,1749106240983,-939.73,0.00020979,2]
[364453840,1749106240992,-417.0898,0.00020979,2]
[364453842,1749106241002,-417.0898,0.00020979,2]
[364453844,1749106241011,-151.0,0.00020979,2]
[364453846,1749106241021,-193.081194,0.0002098,2]
[364453848,1749106241030,-151.0,0.0002098,2]
[364453850,1749106241040,-800.0,0.00021032,2]
[364453852,1749106241049,-811.47,0.00021049,2]
[364453854,1749106241059,-440.0,0.00021049,2]
[364453856,1749106241069,-440.0,0.00021049,2]
[364453858,1749106241078,-373.49,0.00021049,2]
[364453860,1749106241088,-440.0,0.00021049,2]
[364453862,1749106241097,-500.0,0.00021065,2]
[364453864,1749106241107,-1113.80008442,0.00021107,4]
[364453866,1749106241116,-151.0,0.00021107,2]
[364453868,1749106241126,-151.0,0.00021107,2]
[364453870,1749106241136,-151.0,0.00021107,2]
[364453872,1749106241145,-180.067216,0.00021107,2]
[364453874,1749106241155,-151.0,0.00021107,2]
[364453876,1749106241165,-4865.75,0.00021112,2]
[364453878,1749106241176,-924.95492983,0.00021116,2]
[364453880,1749106241186,-157.242893,0.00021137,2]
[364453882,1749106241196,-157.242893,0.00021137,2]
[364453884,1749106241206,-151.0,0.00021137,2]
[364453886,1749106241215,-151.0,0.00021137,2]
[364453888,1749106241225,-1200.0,0.00021164,2]
[364453890,1749106241235,-151.0,0.00021164,2]
[364453892,1749106241245,-151.0,0.00021164,2]
[364453894,1749106241254,-151.0,0.00021164,2]
[364453896,1749106241264,-151.0,0.00021164,2]
[364453898,1749106241277,-151.0,0.00021164,2]
[364453901,1749106241287,-259.26116,0.00021164,2]
[364453902,1749106241296,-160.0,0.00021192,2]
[364453905,1749106241306,-4000.0,0.00021193,2]
[364453907,1749106241316,-364.95672582,0.00021197,2]
[364453908,1749106241328,-5000.0,0.00021198,2]
[364453910,1749106241338,-151.420524,0.00021198,2]
[364453912,1749106241347,-151.0,0.00021198,2]
[364453915,1749106241358,-151.0,0.00021198,2]
[364453917,1749106241368,-155.302477,0.00021198,2]
[364453918,1749106241377,-151.0,0.00021198,2]
[364453920,1749106241386,-151.0,0.00021198,2]
[364453922,1749106241397,-151.0,0.00021198,2]
[364453924,1749106241406,-151.0,0.00021198,2]
[364453926,1749106241415,-151.0,0.00021198,2]
[364453928,1749106241425,-151.0,0.00021198,2]
[364453930,1749106241435,-151.0,0.00021198,2]
[364453932,1749106241444,-160.0,0.0002123,3]
[364453934,1749106241454,-151.0,0.00021253,2]
[364453936,1749106241463,-261.090643,0.00021253,2]
[364453938,1749106241473,-261.090643,0.00021253,2]
[364453940,1749106241483,-440.0,0.00021253,2]
[364453942,1749106241493,-440.0,0.00021253,2]
[364453943,1749106241503,-151.0,0.00021253,2]
[364453944,1749106241513,-440.0,0.00021253,2]
[364453945,1749106241523,-1216.69,0.00021253,2]
[364453946,1749106241533,-151.0,0.00021253,2]
[364453947,1749106241542,-440.0,0.00021253,2]
[364453948,1749106241552,-939.73,0.00021253,2]
[364453949,1749106241562,-417.0898,0.00021253,2]
[364453950,1749106241571,-417.0898,0.00021253,2]
[364453951,1749106241581,-151.0,0.00021253,2]
[364453952,1749106241591,-1113.80008442,0.00021279,5]
[364453953,1749106241600,-811.47,0.00021323,2]
[364453954,1749106241610,-440.0,0.00021323,2]
[364453955,1749106241620,-440.0,0.00021323,2]
[364453956,1749106241630,-440.0,0.00021323,2]
[364453957,1749106241640,-151.0,0.00021333,2]
[364453958,1749106241650,-151.0,0.00021333,2]
[364453959,1749106241659,-151.0,0.00021333,2]
[364453960,1749106241669,-151.0,0.00021333,2]
[364453961,1749106241679,-965.62,0.00021333,2]
[364453962,1749106241688,-150.17540008,0.00021333,2]
[364453963,1749106241719,-292.7075,0.00019335,2]
[364453964,1749106241761,-147.2925,0.00019335,2]
[364453965,1749106241770,-440.0,0.00019609,2]
[364453966,1749106241781,-440.0,0.00019883,2]
[364453968,1749106241792,-109.31007934,0.00020157,2]
[364453970,1749106241805,-330.68992066,0.00020157,2]
[364453972,1749106241815,-300.488491,0.00020431,2]
[364453974,1749106241824,-481.63353278,0.00021333,2]
[364453976,1749106241836,-376.1391984,0.00021333,2]
[364453978,1749106241848,-800.0,0.00021333,2]
[364454439,1749106246198,-440.0,0.00018035,2]
[364454441,1749106246208,-440.0,0.00018309,2]
[364454443,1749106246218,-440.0,0.00018583,2]
[364454445,1749106246228,-440.0,0.00018857,2]
[364454447,1749106246237,-259.3,0.00019061,2]
[364454449,1749106246247,-175.36742473,0.00019131,2]
[364459241,1749106629266,1010.0,0.00025,120]
[364459242,1749106921627,209.0,0.00025,120]
[364459579,1749107247176,-416.67955268,0.00016629,2]
[364459666,1749107259130,1000.0,0.00024221,120]
[364459667,1749107266197,1000.0,0.00024221,120]
[364459668,1749107273049,500.0,0.00024221,120]
[364459669,1749107274356,-164.36271843,0.00016444,2]
[364459670,1749107293554,996.0,0.00024221,120]
[364459671,1749107302936,-182.41261038,0.00016444,2]
[364459672,1749107305172,-340.74030046,0.00016444,2]
[364459673,1749107307163,-163.82220355,0.00016444,2]
[364459674,1749107309888,-194.91840564,0.00016444,2]
[364459675,1749107311462,-158.18523208,0.00016444,2]
[364459676,1749107314413,-207.41661997,0.00016444,2]
[364459677,1749107315873,-284.22462792,0.00016444,2]
[364459678,1749107366377,-188.11901069,0.00016444,2]
[364459679,1749107369065,-342.10279694,0.00016444,2]
[364459681,1749107370510,-193.3401252,0.00016444,2]
[364459682,1749107393727,-320.63012226,0.00016444,2]
[364459683,1749107398841,-456.69794491,0.00016444,2]
[364459684,1749107422278,-191.89801977,0.00016444,2]
[364459685,1749107423847,-157.56091234,0.00016444,2]
[364459686,1749107425385,-236.28749876,0.00016444,2]
[364459687,1749107428031,-151.47562089,0.00016444,2]
[364459688,1749107430948,-253.96030046,0.00016444,2]
[364459698,1749107431880,-170.29792815,0.00016444,2]
[364459700,1749107431890,-2098.11,0.00016662,2]
[364459701,1749107431899,-168.35077937,0.00016933,2]
[364459702,1749107431909,-300.0,0.00017032,2]
[364459703,1749107431919,-300.0,0.00017032,2]
[364459704,1749107431929,-1200.0,0.00017032,2]
[364459705,1749107431938,-430.0,0.00017032,2]
[364459706,1749107431949,-519.02725028,0.00017032,2]
[364459707,1749107431960,-430.0,0.00017032,2]
[364459708,1749107431970,-1440.17598308,0.00017033,2]
[364459709,1749107431998,-481.84569023,0.00017033,2]
[364459710,1749107432130,-605.45,0.00017033,2]
[364459711,1749107432143,-4869.19082922,0.00017033,2]
[364459755,1749107437963,-430.0,0.00017032,2]
[364459758,1749107437974,-177.79823368,0.00017033,2]
[364459760,1749107437984,-440.0,0.00017033,2]
[364459762,1749107437994,-430.0,0.00017033,2]
[364459764,1749107438003,-440.0,0.00017033,2]
[364459766,1749107438013,-440.0,0.00017033,2]
[364459767,1749107438023,-440.0,0.00017033,2]
[364459769,1749107438032,-440.0,0.00017033,2]
[364459771,1749107438043,-430.0,0.00017033,2]
[364459774,1749107438052,-440.0,0.00017033,2]
[364459775,1749107438063,-440.0,0.00017033,2]
[364459777,1749107438073,-440.0,0.00017033,2]
[364459780,1749107438083,-430.0,0.00017033,2]
[364459781,1749107438092,-454.51971857,0.00017033,2]
[364459783,1749107438101,-385.74013933,0.00017033,2]
[364459785,1749107438111,-430.0,0.00017033,2]
[364459788,1749107438121,-453.12294541,0.00017033,2]
[364459790,1749107438130,-440.0,0.00017033,2]
[364459793,1749107438140,-430.0,0.00017033,2]
[364459796,1749107438151,-440.0,0.00017033,2]
[364459798,1749107438160,-440.0,0.00017033,2]
[364459800,1749107438170,-440.0,0.00017033,2]
[364459802,1749107438181,-440.0,0.00017033,2]
[364459804,1749107438190,-440.0,0.00017033,2]
[364459806,1749107438201,-440.0,0.00017033,2]
[364459808,1749107438210,-430.0,0.00017033,2]
[364459809,1749107438220,-440.0,0.00017033,2]
[364459810,1749107438230,-440.0,0.00017033,2]
[364459811,1749107438239,-773.78,0.00017033,2]
[364459812,1749107438250,-430.0,0.00017033,2]
[364459813,1749107438259,-430.0,0.00017033,2]
[364459815,1749107438269,-440.0,0.00017033,2]
[364459817,1749107438279,-440.0,0.00017033,2]
[364459819,1749107438288,-440.0,0.00017033,2]
[364459821,1749107438297,-440.0,0.00017033,2]
[364459823,1749107438307,-430.0,0.00017033,2]
[364459825,1749107438317,-430.0,0.00017033,2]
[364459827,1749107438326,-450.91032249,0.00017033,2]
[364459829,1749107438336,-440.0,0.00017033,2]
[364459831,1749107438345,-440.0,0.00017033,2]
[364459833,1749107438355,-440.0,0.00017033,2]
[364459835,1749107438365,-440.0,0.00017033,2]
[364459837,1749107438374,-430.0,0.00017033,2]
[364459839,1749107438384,-440.0,0.00017033,2]
[364459841,1749107438393,-543.48,0.00017033,2]
[364459843,1749107438402,-440.0,0.00017033,2]
[364459845,1749107438412,-440.0,0.00017033,2]
[364459847,1749107438423,-440.0,0.00017033,2]
[364459849,1749107438432,-440.0,0.00017033,2]
[364459851,1749107438441,-430.0,0.00017033,2]
[364459853,1749107438450,-440.0,0.00017033,2]
[364459855,1749107438460,-440.0,0.00017033,2]
[364459857,1749107438469,-718.07,0.00017033,2]
[364459859,1749107438479,-24900.0,0.00017034,2]
[364459861,1749107438488,-440.0,0.00017307,2]
[364459863,1749107438497,-233.95102304,0.00017307,2]
[364459865,1749107438507,-440.0,0.00017307,2]
[364459867,1749107438516,-440.0,0.00017307,2]
[364459869,1749107438526,-440.0,0.00017307,2]
[364459871,1749107438537,-440.0,0.00017307,2]
[364459873,1749107438547,-440.0,0.00017307,2]
[364459876,1749107438556,-440.0,0.00017307,2]
[364459878,1749107438565,-440.0,0.00017307,2]
[364459879,1749107438575,-440.0,0.00017307,2]
[364459881,1749107438584,-440.0,0.00017307,2]
[364459883,1749107438593,-440.0,0.00017307,2]
[364459885,1749107438602,-440.0,0.00017307,2]
[364459887,1749107438612,-440.0,0.00017307,2]
[364459890,1749107438621,-440.0,0.00017307,2]
[364459892,1749107438630,-440.0,0.00017307,2]
[364459894,1749107438640,-440.0,0.00017307,2]
[364459896,1749107438649,-440.0,0.00017307,2]
[364459898,1749107438659,-420.0,0.00017307,2]
[364459900,1749107438668,-440.0,0.00017307,2]
[364459902,1749107438678,-431.74485722,0.00017307,2]
[364459904,1749107438688,-440.0,0.00017307,2]
[364459906,1749107438698,-425.57863015,0.00017307,2]
[364459908,1749107438711,-440.0,0.00017307,2]
[364459910,1749107438720,-440.0,0.00017307,2]
[364459912,1749107438730,-440.0,0.00017307,2]
[364459914,1749107438739,-543.48,0.00017307,2]
[364459916,1749107438749,-440.0,0.00017307,2]
[364459918,1749107438758,-440.0,0.00017307,2]
[364459920,1749107438768,-440.0,0.00017307,2]
[364459922,1749107438777,-327.12464886,0.00017307,2]
[364459924,1749107438789,-440.0,0.00017307,2]
[364459926,1749107438798,-440.0,0.00017307,2]
[364459928,1749107438807,-718.07,0.00017307,2]
[364459930,1749107438816,-529.42,0.00017581,2]
[364459932,1749107438826,-158.9478231,0.00017581,2]
[364459934,1749107438836,-440.0,0.00017581,2]
[364459936,1749107438845,-440.0,0.00017581,2]
[364459938,1749107438855,-440.0,0.00017581,2]
[364459940,1749107438863,-440.0,0.00017581,2]
[364459942,1749107438872,-543.48,0.00017581,2]
[364459944,1749107438884,-440.0,0.00017581,2]
[364459946,1749107438893,-440.0,0.00017581,2]
[364459948,1749107438902,-718.07,0.00017581,2]
[364459950,1749107438911,-440.0,0.00017855,2]
[364459952,1749107438921,-440.0,0.00017855,2]
[364459954,1749107438931,-440.0,0.00017855,2]
[364459956,1749107438940,-440.0,0.00017855,2]
[364459958,1749107438950,-543.48,0.00017855,2]
[364459961,1749107438963,-440.0,0.00017855,2]
[364459963,1749107438976,-440.0,0.00017855,2]
[364459965,1749107438989,-718.07,0.00017855,2]
[364459968,1749107439003,-1274.11533208,0.00017935,2]
[364459970,1749107439015,-168.35077933,0.0001796,2]
[364459973,1749107439026,-160.0,0.00018026,2]
[364459975,1749107439037,-773.78,0.00018032,2]
[364459977,1749107439051,-773.78,0.00018032,2]
[364459979,1749107439063,-440.0,0.00018033,2]
[364459982,1749107439075,-440.0,0.00018033,2]
[364459984,1749107439088,-440.0,0.00018033,2]
[364459986,1749107439101,-430.0,0.00018033,2]
[364459989,1749107439114,-440.0,0.00018033,2]
[364459991,1749107439125,-430.0,0.00018033,2]
[364459993,1749107439137,-430.0,0.00018033,2]
[364459996,1749107439150,-430.0,0.00018033,2]
[364459998,1749107439163,-430.0,0.00018033,2]
[364460000,1749107439175,-440.0,0.00018033,2]
[364460003,1749107439187,-430.0,0.00018033,2]
[364460005,1749107439198,-430.0,0.00018033,2]
[364460007,1749107439210,-420.0,0.00018033,2]
[364460009,1749107439222,-430.0,0.00018033,2]
[364460011,1749107439233,-440.0,0.00018033,2]
[364460014,1749107439245,-430.0,0.00018033,2]
[364460016,1749107439258,-440.0,0.00018033,2]
[364460018,1749107439270,-440.0,0.00018033,2]
[364460021,1749107439281,-430.0,0.00018033,2]
[364460023,1749107439294,-367.69743656,0.00018033,2]
[364460025,1749107439304,-440.0,0.00018033,2]
[364460027,1749107439314,-430.0,0.00018033,2]
[364460030,1749107439326,-430.0,0.00018033,2]
[364460032,1749107439336,-453.80888928,0.00018033,2]
[364460034,1749107439348,-440.0,0.00018033,2]
[364460036,1749107439359,-500.0,0.00018033,2]
[364460038,1749107439371,-500.0,0.00018033,2]
[364460041,1749107439384,-500.0,0.00018033,2]
[364460043,1749107439396,-500.0,0.00018033,2]
[364460045,1749107439408,-440.0,0.00018033,2]
[364460048,1749107439422,-264.17758372,0.00018033,2]
[364460050,1749107439434,-440.0,0.00018033,2]
[364460052,1749107439447,-520.78,0.00018033,2]
[364460055,1749107439461,-440.0,0.00018033,2]
[364460057,1749107439472,-440.0,0.00018033,2]
[364460059,1749107439482,-490.75609032,0.00018033,2]
[364460061,1749107439494,-430.0,0.00018033,2]
[364460064,1749107439505,-420.0,0.00018033,2]
[364460068,1749107439516,-500.0,0.00018033,2]
[364460071,1749107439527,-500.0,0.00018033,2]
[364460073,1749107439539,-500.0,0.00018033,2]
[364460075,1749107439553,-440.0,0.00018033,2]
[364460078,1749107439565,-500.0,0.00018033,2]
[364460080,1749107439577,-440.0,0.00018033,2]
[364460082,1749107439587,-440.0,0.00018033,2]
[364460085,1749107439598,-440.0,0.00018033,2]
[364460087,1749107439608,-440.0,0.00018033,2]
[364460089,1749107439619,-440.0,0.00018033,2]
[364460091,1749107439631,-440.0,0.00018033,2]
[364460093,1749107439643,-420.0,0.00018033,2]
[364460095,1749107439654,-440.0,0.00018033,2]
[364460097,1749107439664,-440.0,0.00018033,2]
[364460099,1749107439675,-440.0,0.00018033,2]
[364460102,1749107439686,-430.0,0.00018033,2]
[364460104,1749107439697,-430.0,0.00018033,2]
[364460106,1749107439710,-440.0,0.00018033,2]
[364460108,1749107439721,-420.0,0.00018033,2]
[364460110,1749107439731,-430.0,0.00018033,2]
[364460112,1749107439743,-440.0,0.00018033,2]
[364460114,1749107439754,-420.0,0.00018033,2]
[364460116,1749107439765,-255.40745137,0.00018033,2]
[364460119,1749107439777,-440.0,0.00018033,2]
[364460121,1749107439790,-420.0,0.00018033,2]
[364460123,1749107439801,-420.0,0.00018033,2]
[364460125,1749107439812,-440.0,0.00018033,2]
[364460127,1749107439824,-480.85504194,0.00018033,2]
[364460130,1749107439836,-440.0,0.00018033,2]
[364460132,1749107439847,-176.98459333,0.00018033,2]
[364460134,1749107439859,-440.0,0.00018033,2]
[364460136,1749107439871,-430.0,0.00018033,2]
[364460138,1749107439882,-440.0,0.00018033,2]
[364460140,1749107439893,-440.0,0.00018033,2]
[364460143,1749107439904,-440.0,0.00018033,2]
[364460145,1749107439915,-430.0,0.00018033,2]
[364460147,1749107439926,-384.27329561,0.00018033,2]
[364460149,1749107439938,-440.0,0.00018033,2]
[364460151,1749107439949,-430.0,0.00018033,2]
[364460154,1749107439960,-436.48462691,0.00018033,2]
[364460156,1749107439971,-440.0,0.00018033,2]
[364460158,1749107439984,-420.0,0.00018033,2]
[364460160,1749107439996,-440.0,0.00018033,2]
[364460162,1749107440007,-430.0,0.00018033,2]
[364460164,1749107440019,-440.0,0.00018033,2]
[364460166,1749107440031,-405.76938968,0.00018033,2]
[364460169,1749107440042,-430.0,0.00018033,2]
[364460171,1749107440054,-483.11435397,0.00018033,2]
[364460173,1749107440064,-430.0,0.00018033,2]
[364460175,1749107440076,-445.798385,0.00018033,2]
[364460177,1749107440087,-440.0,0.00018033,2]
[364460179,1749107440099,-396.07061691,0.00018033,2]
[364460182,1749107440110,-430.0,0.00018033,2]
[364460184,1749107440121,-440.0,0.00018033,2]
[364460186,1749107440132,-1197.13,0.00018033,2]
[364460188,1749107440143,-211.17063852,0.00018033,2]
[364460190,1749107440154,-430.0,0.00018033,2]
[364460193,1749107440167,-440.0,0.00018033,2]
[364460195,1749107440180,-440.0,0.00018033,2]
[364460197,1749107440192,-440.0,0.00018033,2]
[364460199,1749107440203,-440.31991101,0.00018033,2]
[364460202,1749107440214,-430.0,0.00018033,2]
[364460204,1749107440226,-440.0,0.00018033,2]
[364460206,1749107440237,-443.36740556,0.00018033,2]
[364460208,1749107440248,-440.0,0.00018033,2]
[364460210,1749107440259,-430.0,0.00018033,2]
[364460212,1749107440271,-440.0,0.00018033,2]
[364460215,1749107440282,-440.0,0.00018033,2]
[364460217,1749107440293,-440.0,0.00018033,2]
[364460219,1749107440304,-440.0,0.00018033,2]
[364460221,1749107440315,-839.48,0.00018033,2]
[364460223,1749107440326,-440.0,0.00018033,2]
[364460225,1749107440337,-359.20152338,0.00018033,2]
[364460228,1749107440348,-440.0,0.00018033,2]
[364460244,1749107440497,-430.0,0.00018033,2]
[364460246,1749107440510,-440.0,0.00018033,2]
[364460249,1749107440520,-480.0,0.00018033,2]
[364460251,1749107440530,-440.0,0.00018033,2]
[364460253,1749107440539,-430.0,0.00018033,2]
[364460255,1749107440549,-440.0,0.00018033,2]
[364460257,1749107440558,-440.0,0.00018033,2]
[364460258,1749107440567,-366.49554212,0.00018033,2]
[364460261,1749107440577,-324.63575684,0.00018033,2]
[364460263,1749107440586,-421.57770526,0.00018033,2]
[364460265,1749107440595,-440.0,0.00018033,2]
[364460267,1749107440605,-485.9,0.00018033,2]
[364460269,1749107440615,-440.0,0.00018033,2]
[364460271,1749107440625,-440.0,0.00018033,2]
[364460273,1749107440635,-433.49669155,0.00018033,2]
[364460275,1749107440644,-440.0,0.00018033,2]
[364460277,1749107440655,-440.0,0.00018033,2]
[364460279,1749107440665,-440.0,0.00018033,2]
[364460281,1749107440675,-440.0,0.00018033,2]
[364460283,1749107440684,-440.0,0.00018033,2]
[364460285,1749107440694,-440.0,0.00018033,2]